Workbook

Sheet A 1.1
A1: Descripción de la Actividad | B1: UNIDAD | C1: Sub total US$ | D1: Resumen de Costos | E1: Aporte Mercociudades | F1: Medellín | G1: CABA
A2: Pasajes aéreos. Desde Buenos Aires a Medellín, ida y vuelta para 3 funcionarios del Gobierno de la Ciudad Autónoma de Buenos Aires y un actor interviniente en el proyecto Nosotras Conectadas. | B2: 4 personas | C2: 1,100.0 | D2: =+C2*4 -> 4,400.0 | E2: =+D2 -> 4,400.0
A3: Alojamiento. En la Ciudad de Medellín, para 3 funcionarios del Gobierno de la Ciudad Autónoma de Buenos Aires y un actor interviniente en el proyecto Nosotras Conectadas por 4 noches. | B3: 4 personas | C3: 310.0 | D3: =310*4 -> 1,240.0 | E3: =+D3 -> 1,240.0
A4: Seguro Médico. En la Ciudad de Medellín, para 3 funcionarios del Gobierno de la Ciudad Autónoma de Buenos Aires y un actor interviniente en el proyecto Nosotras Conectadas. | B4: 4 personas | C4: 40 USD | D4: =40*4 -> 160.0 | E4: 160.0
A5: Traslados internos, para 3 funcionarios del Gobierno de la Ciudad Autónoma de Buenos Aires y un actor interviniente en el proyecto Nosotras Conectadas. El costo que se debe asumir son los peajes para el traslado desde el aeropuerto. | B5: 4 personas | C5: 70.0 | D5: =+C5*4 -> 280.0 | F5: =+D5 -> 280.0
A6: Manutención para 3 funcionarios del Gobierno de la Ciudad Autónoma de Buenos Aires y un actor interviniente en el proyecto Nosotras Conectadas. | B6: 3 personas | C6: 150.0 | D6: =+C6*3 -> 450.0 | G6: =+D6 -> 450.0
A7: Manutención para un actor interviniente en el proyecto Nosotras Conectadas. | B7: 1 persona | C7: 150.0 | D7: =+C7 -> 150.0 | E7: =+D7 -> 150.0
A8: Sala. Espacio físico por día para la realización de los talleres. | B8: 3 días | C8: 270 | D8: =270*3 -> 810.0 | F8: =+D8 -> 810.0
A9: Ejecución logística. Recursos humanos para la implementación administrativa y logística del taller, trato con proveedores.2 personas con dedicación de 10 horas semanales por tres meses | B9: 2 personas | C9: 1,200.0 | D9: =+C9*2 -> 2,400.0 | F9: =+D9 -> 2,400.0
A10: Diseño del taller. Recurso Humano para la realización del diseño del taller en términos de contenido y metodología (Cada RRHH con dedicación de 10hs semanales por 3 meses aprox). | B10: 2 personas | C10: 1,200.0 | D10: =+C10*2 -> 2,400.0 | G10: =+C10*2 -> 2,400.0
A11: Catering. Servicio de café, almuerzo y dos snacks. 20 personas. | B11: 3 días | C11: 1,000.0 | D11: =1000*3 -> 3,000.0 | E11: =+D11 -> 3,000.0
A12: Servicio de facilitación. Experto en facilitación de talleres/ eventos.. | B12: 3 días | C12: 230.0 | D12: =+C12*3 -> 690.0 | E12: =+D12 -> 690.0
A13: Relatoría y Sistematización. Recurso Humano destinado a la relatoría del taller, la sistematización de la información y la generación de un documento compartido. (Cada RRHH dos meses con dedicación de 10hs semanales). | B13: 2 personas | C13: 800.0 | D13: =+C13*2 -> 1,600.0 | F13: =+C13 -> 800.0 | G13: =+C13 -> 800.0
A14: Materiales de trabajo. | B14: 1 | C14: 200.0 | D14: =200*1 -> 200.0 | F14: =+D14 -> 200.0
A15: TOTAL | D15: =SUM(D2:D14) -> 17780.0 | E15: =SUM(E2:E14) -> 9640.0 | F15: 4490.0 | G15: 3650.0
